{"text_format":"1","workbook":"xlsx","n_sheets":5,"sheets":["ΜΗΝΙΑΙΑ ΑΜΟΙΒΗ 01-01-2023","Υπολογισμός αμοιβών - εισφορών ","---","ΠΠΥ-ΤΙΤΛΟΣ ΚΤΗΣΗΣ 01-01-2024","ΜΙΣΘΟΔΟΣΙΑ ΙΔΟΧ 01-01-2024"],"not_rendered":{"charts":0,"images":0,"macros":1,"external_links":0,"defined_names":15,"comments":0,"pivot_tables":0},"unopened":[],"bounds":{"document_bytes":16777216,"sheet_cells":100000,"rows_first":2000,"rows_last":500,"rows_between":2000,"halvings":0,"cell_chars":16384,"cell_head_chars":4096},"cells_cut":0,"cells_raw":0,"read":"whole","date_system":"1900"}

{"sheet":"ΜΗΝΙΑΙΑ ΑΜΟΙΒΗ 01-01-2023","index":0,"n_rows":42,"n_cols":3,"rows_kept":42,"cut":false,"hidden":false,"merged":[[0,0,0,2]]}
["Υπολογισμός Μηνιαίας Αμοιβής (με βάση τις διατάξεις του άρθρου 39, παρ. 9 του ν. 4387/2016)"]
[]
[]
["Κριτήρια υπολογισμού"]
["Ταμείο","Επιλέξτε"]
["Υπαγωγή σε Φ.Π.Α.","Επιλέξτε"]
["Υπολογισμός με βάση","Επιλέξτε"]
["Ποσό",0]
[]
["* Μετά τη συμπλήρωση των παραπάνω κριτηρίων επιλέξτε «Υπολογισμός» "]
[]
[]
["Αποτελέσματα υπολογισμού"]
["Συνολική Αξία",0]
["Φ.Π.Α.",0]
["Καθαρή Αξία",0]
[]
["Εισφορές Εργοδότη",0]
["Μηνιαίο Κόστος",0]
[]
["Παρακράτηση Φόρου 20%",0]
["Εισφορές Δικαιούχου",0]
["Πληρωτέο Ποσό (περιέχει Φ.Π.Α.)",0]
[]
[]
["Παρατηρήσεις"]
["ΕΦΚΑ (πρώην ΟΑΕΕ)","Κράτηση Δικαιούχου","Εισφορά Εργοδότη"]
["ΕΦΚΑ ΣΥΝΤΑΞΗ",6.6699999999999995E-2,0.1333]
["ΕΦΚΑ ΥΓ.ΠΕΡΙΘΑΛΨΗ",2.5499999999999998E-2,4.5499999999999999E-2]
["Σύνολο",{"$f":"SUM(B28:B29)","v":9.219999999999999E-2},{"$f":"SUM(C28:C29)","v":0.17880000000000001}]
[]
["ΕΦΚΑ (πρώην ΤΣΜΕΔΕ)","Κράτηση Δικαιούχου","Εισφορά Εργοδότη"]
["ΕΦΚΑ ΣΥΝΤΑΞΗ",6.6699999999999995E-2,0.1333]
["ΕΦΚΑ ΥΓ.ΠΕΡΙΘΑΛΨΗ",2.5499999999999998E-2,4.5499999999999999E-2]
["ΕΦΚΑ ΕΠΙΚΟΥΡΙΚΟ (1η κατηγορία)",21.38,21.38]
["ΕΦΚΑ ΕΦΑΠΑΞ (1η κατηγορία)",28.51,0]
[]
["Ποσά ασφάλισης σε περίπτωση επιλογής διαφορετικής κατηγορίας"]
["ΕΦΚΑ ΕΠΙΚΟΥΡΙΚΟ (2η κατηγορία)",25.76,25.77]
["ΕΦΚΑ ΕΦΑΠΑΞ (2η κατηγορία)",33.99,0]
["ΕΦΚΑ ΕΠΙΚΟΥΡΙΚΟ (3η κατηγορία)",30.7,30.7]
["ΕΦΚΑ ΕΦΑΠΑΞ (3η κατηγορία)",40.57,0]

{"sheet":"Υπολογισμός αμοιβών - εισφορών ","index":1,"n_rows":32,"n_cols":15,"rows_kept":32,"cut":false,"hidden":false,"merged":[[0,8,0,10],[0,12,0,14],[1,8,1,10],[2,8,2,10],[1,12,1,14],[2,12,2,14],[0,0,0,2],[0,4,0,6],[1,0,1,2],[2,0,2,2],[1,4,1,6],[2,4,2,6]]}
["Τ.Π.Υ. (υπαγόμενοι στην παρ.9, άρθρ.39, Ν.4387/2016)",null,null,null,"Τ.Π.Υ. (υπαγόμενοι στην παρ.9, άρθρ.39, Ν.4387/2016)",null,null,null,"Τ.Π.Υ. (υπαγόμενοι στην παρ.9, άρθρ.39, Ν.4387/2016)",null,null,null,"Τ.Π.Υ. (υπαγόμενοι στην παρ.9, άρθρ.39, Ν.4387/2016)"]
["Ταμείο ασφαλισμένου: Ο.Α.Ε.Ε.",null,null,null,"Ταμείο ασφαλισμένου: Ο.Α.Ε.Ε.",null,null,null,"Ταμείο ασφαλισμένου: Τ.Σ.Μ.Ε.Δ.Ε.",null,null,null,"Ταμείο ασφαλισμένου: Τ.Σ.Μ.Ε.Δ.Ε."]
["Υπαγωγή σε ΦΠΑ: ΝΑΙ",null,null,null,"Υπαγωγή σε ΦΠΑ: ΌΧΙ",null,null,null,"Υπαγωγή σε ΦΠΑ: ΝΑΙ",null,null,null,"Υπαγωγή σε ΦΠΑ: ΌΧΙ"]
[]
["Ποσό Σύμβασης / Συνολική Αξία",1000,null,null,"Ποσό Σύμβασης / Συνολική Αξία",1000,null,null,"Μήνες Σύμβασης",1,null,null,"Μήνες Σύμβασης",1]
["Φ.Π.Α.",{"$f":"B5-B7","v":193.54999999999995},null,null,"Φ.Π.Α.",0]
["Ποσό χωρίς ΦΠΑ / Καθαρή Αξία",{"$f":"ROUND(B5/1.24,2)","v":806.45},null,null,"Ποσό χωρίς ΦΠΑ / Καθαρή Αξία",{"$f":"F5","v":1000},null,null,"Ποσό Σύμβασης / Συνολική Αξία",1000,null,null,"Ποσό Σύμβασης / Συνολική Αξία",1000]
[null,null,null,null,null,null,null,null,"Φ.Π.Α.",{"$f":"J7-J9","v":193.54999999999995},null,null,"Φ.Π.Α.",0]
["Φόρος",{"$f":"ROUND(B7*20/100,2)","v":161.29},null,null,"Φόρος",{"$f":"ROUND(F7*20/100,2)","v":200},null,null,"Ποσό χωρίς ΦΠΑ / Καθαρή Αξία",{"$f":"ROUND(J7/1.24,2)","v":806.45},null,null,"Ποσό χωρίς ΦΠΑ / Καθαρή Αξία",{"$f":"N7","v":1000}]
[]
[null,"Ασφαλ.","Εργοδ.",null,null,"Ασφαλ.","Εργοδ.",null,"Φόρος",{"$f":"ROUND(J9*20/100,2)","v":161.29},null,null,"Φόρος",{"$f":"ROUND(N9*20/100,2)","v":200}]
["ΕΦΚΑ Σύνταξη",{"$f":"ROUND(B7*6.67/100,2)","v":53.79},{"$f":"ROUND(B7*13.33/100,2)","v":107.5},null,"ΕΦΚΑ Σύνταξη",{"$f":"ROUND(F7*6.67/100,2)","v":66.7},{"$f":"ROUND(F7*13.33/100,2)","v":133.30000000000001}]
["ΕΦΚΑ Υγ.Περίθαλψη",{"$f":"ROUND(B7*2.55/100,2)","v":20.56},{"$f":"ROUND(B7*4.55/100,2)","v":36.69},null,"ΕΦΚΑ Υγ.Περίθαλψη",{"$f":"ROUND(F7*2.55/100,2)","v":25.5},{"$f":"ROUND(F7*4.55/100,2)","v":45.5},null,null,"Ασφαλ.","Εργοδ.",null,null,"Ασφαλ.","Εργοδ."]
["Σύνολο ΕΦΚΑ",{"$f":"SUM(B12:B13)","v":74.349999999999994},{"$f":"SUM(C12:C13)","v":144.19},null,"Σύνολο ΕΦΚΑ",{"$f":"SUM(F12:F13)","v":92.2},{"$f":"SUM(G12:G13)","v":178.8},null,"ΕΦΚΑ Σύνταξη",{"$f":"ROUND(J9*6.67/100,2)","v":53.79},{"$f":"ROUND(J9*13.33/100,2)","v":107.5},null,"ΕΦΚΑ Σύνταξη",{"$f":"ROUND(N9*6.67/100,2)","v":66.7},{"$f":"ROUND(N9*13.33/100,2)","v":133.30000000000001}]
[null,null,null,null,null,null,null,null,"ΕΦΚΑ Υγ.Περίθαλψη",{"$f":"ROUND(J9*2.55/100,2)","v":20.56},{"$f":"ROUND(J9*4.55/100,2)","v":36.69},null,"ΕΦΚΑ Υγ.Περίθαλψη",{"$f":"ROUND(N9*2.55/100,2)","v":25.5},{"$f":"ROUND(N9*4.55/100,2)","v":45.5}]
["Τελικό ποσό (μετά την αφαίρεση του Φ.Π.Α.)",{"$f":"B7-B9-B14","v":570.81000000000006},null,null,"Πληρωτέο ποσό",{"$f":"F5-F9-F14","v":707.8},null,null,"ΕΦΚΑ Επικουρικό (1η ασφ.κατηγ.)",{"$f":"21.38*J5","v":21.38},{"$f":"21.38*J5","v":21.38},null,"ΕΦΚΑ Επικουρικό (1η ασφ.κατηγ.)",{"$f":"21.38*N5","v":21.38},{"$f":"21.38*N5","v":21.38}]
[null,null,null,null,null,null,null,null,"ΕΦΚΑ Εφάπαξ (1η ασφ.κατηγ.)",{"$f":"28.51*J5","v":28.51},0,null,"ΕΦΚΑ Εφάπαξ (1η ασφ.κατηγ.)",{"$f":"28.51*N5","v":28.51},0]
["Πληρωτέο ποσό (περιέχει Φ.Π.Α.)",{"$f":"B5-B9-B14","v":764.36},null,null,"Κόστος",{"$f":"F5+G14","v":1178.8},null,null,"Σύνολο ΕΦΚΑ",{"$f":"SUM(J14:J17)","v":124.24},{"$f":"SUM(K14:K17)","v":165.57},null,"Σύνολο ΕΦΚΑ",{"$f":"SUM(N14:N17)","v":142.09},{"$f":"SUM(O14:O17)","v":200.18}]
[]
["Κόστος",{"$f":"B5+C14","v":1144.19},null,null,null,null,null,null,"Τελικό ποσό (μετά την αφαίρεση του Φ.Π.Α.)",{"$f":"J9-J11-J18","v":520.92000000000007},null,null,"Πληρωτέο ποσό",{"$f":"N7-N11-N18","v":657.91}]
[]
[null,null,null,null,null,null,null,null,"Πληρωτέο ποσό (περιέχει Φ.Π.Α.)",{"$f":"J7-J11-J18","v":714.47},null,null,"Κόστος",{"$f":"N7+O18","v":1200.18}]
[]
["Παρατηρήσεις:",null,null,null,null,null,null,null,"Κόστος",{"$f":"J7+K18","v":1165.57}]
["- Συμπληρώστε το ποσό της σύμβασης / συνολικής αξίας"]
["- Για διαφορετική βάση υπολογισμού επιλέξετε: Data \\ What-if Analysis \\ Goal Seek"]
["- Ο υπολογισμός γίνεται με βάση τον αλγόριθμο του resCom"]
[]
["Βάση υπολογισμού"]
["Το ποσό της σύμβασης"]
["Το κόστος στο έργο"]
["Τελικό ποσό προς δικαιούχο (μετά την αφαίρεση του Φ.Π.Α.)"]

{"sheet":"---","index":2,"n_rows":0,"n_cols":0,"rows_kept":0,"cut":false,"hidden":false,"merged":[]}

{"sheet":"ΠΠΥ-ΤΙΤΛΟΣ ΚΤΗΣΗΣ 01-01-2024","index":3,"n_rows":41,"n_cols":3,"rows_kept":41,"cut":false,"hidden":false,"merged":[[39,0,39,2],[40,0,40,2],[37,0,37,2],[0,0,0,2],[27,0,27,2],[31,0,31,2],[38,0,38,2]]}
["Υπολογισμός Αμοιβής με Παραστατικό Παρεχόμενων Υπηρεσιών\n(Τίτλος Κτήσης - πρώην Απόδειξη Επαγγελματικής Δαπάνης)"]
[]
[]
["Ποσό αμοιβής",5000]
["Αριθμός παραστατικών (πληρωμών)",1]
["* Ο υπολογισμός δεν λαμβάνει υπόψη το μηνιαίο όριο των ασφαλιστικών εισφορών"]
[]
[null,"ΑΝΑ Π.Π.Υ.","ΣΥΝΟΛΙΚΑ"]
["Αξία παραστατικού",{"$f":"ROUND(B4/B5,2)","v":5000},{"$f":"B9*$B$5","v":5000}]
[]
["Φόρος (20%)",{"$f":"ROUND(B9*20/100,2)","v":1000},{"$f":"B11*$B$5","v":1000}]
["Χαρτόσημο και ΟΓΑ Χαρτοσήμου (3,60%)",{"$f":"ROUND(B9*3.6/100,2)","v":180},180]
["Καθαρή αξία παραστατικού",{"$f":"B9-B11-B12","v":3820},3820]
[]
["Ασφαλιστικές εισφορές ΕΦΚΑ"]
["Κύρια Σύνταξη (13,33%)",{"$f":"MIN(ROUND(B13*13.33/100,2),B29)","v":175.83},{"$f":"B16*$B$5","v":175.83}]
["Υγειονομική Περίθαλψη (6,95%)",{"$f":"MIN(ROUND(B13*6.95/100,2),B30)","v":62.39},62.39]
["Σύνολο ΕΦΚΑ",{"$f":"SUM(B16:B17)","v":238.22000000000003},238.22000000000003]
[]
["Σύνολο κρατήσεων",{"$f":"B11+B12+B16+B17","v":1418.22},{"$f":"B20*$B$5","v":1418.22}]
[]
["Πληρωτέο ποσό",{"$f":"B9-B20","v":3581.7799999999997},{"$f":"B22*$B$5","v":3581.7799999999997}]
[]
[]
["Παρατηρήσεις"]
["Οι αασφαλιστικές εισφορές υπολογίζονται επί της καθαρής αξίας του παραστατικού"]
[]
["Το ποσό των ασφαλιστικών εισφορών ανά Παραστατικό Παρεχόμενων Υπηρεσιών δεν μπορεί να υπερβαίνει:"]
["Για Κύρια Σύνταξη",175.83]
["Για Υγειονομική Περίθαλψη",62.39]
[]
["Το ποσό των ασφαλιστικών εισφορών για το σύνολο των Παραστατικών Παρεχόμενων Υπηρεσιών ανά μήνα δεν μπορεί να υπερβαίνει:"]
["Για Κύρια Σύνταξη",567.19000000000005]
["Για Υγειονομική Περίθαλψη",74.87]
[]
[]
["Παρατηρήσεις"]
["- Εγκύκλιος ΕΦΚΑ 33/11-10-2022 (ΑΔΑ: ΡΙΓΒ46ΜΑΠΣ-ΚΥΚ)"]
["- Αφορά τα φυσικά πρόσωπα (ιδιώτες) για τα οποία, σύμφωνα με την φορολογική νομοθεσία, εκδίδεται Παραστατικό Παρεχόμενων Υπηρεσιών (Π.Π.Υ.) ως παραστατικό αμοιβής τους για πώληση προϊόντων ή παροχή υπηρεσιών που ασκείται ως ευκαιριακή και παρεπόμενη δραστηριότητα, εφόσον οι συναλλαγές αυτές στο σύνολό τους δεν υπερβαίνουν το ποσό των 10.000 ευρώ ετησίως και δεν έχουν υποχρέωση έναρξης εργασιών στη Δ.Ο.Υ. για την δραστηριότητά τους αυτή, ανεξάρτητα, εάν, για τα πρόσωπα αυτά προκύπτει υποχρεωτική ασφάλιση στον e – Ε.Φ.Κ.Α. λόγω άσκησης άλλης επαγγελματικής δραστηριότητας ή ιδιότητας, μη συναφούς προς τις αμειβόμενες με Π.Π.Υ. υπηρεσίες"]
["- Ως τεκμήριο υπαγωγής ορίζεται η περιστασιακή και παρεπόμενη δραστηριότητα"]
["- Δεν εμπίπτουν σχέσεις με χαρακτηριστικά, αμιγώς, συμβάσεων εργασίας ή έργου ή με χαρακτηριστικά προσομοιάζοντα"]

{"sheet":"ΜΙΣΘΟΔΟΣΙΑ ΙΔΟΧ 01-01-2024","index":4,"n_rows":25,"n_cols":4,"rows_kept":25,"cut":false,"hidden":false,"merged":[[0,0,0,3]]}
["ΜΙΣΘΟΔΟΣΙΑ ΜΗΝΟΣ ΑΠΑΣΧΟΛΟΥΜΕΝΟΥ ΜΕ ΣΥΜΒΑΣΗ Ι.Δ.Ο.Χ."]
[]
[]
["ΑΠΟΔΟΧΕΣ (ΜΙΚΤΑ)",1162]
[]
[]
["Κρατήσεις","Εργαζόμενου","Εργοδότη","Σύνολο"]
["ΕΦΚΑ",{"$f":"ROUND(MIN($B$4,$B$25)*B23,2)","v":161.16999999999999},{"$f":"ROUND(MIN($B$4,$B$25)*C23,2)","v":259.01},{"$f":"B8+C8","v":420.17999999999995}]
["Φόρος Μισθωτών Υπηρεσιών",{"$f":"fpayTax(payMikta,payEfka,payKids)","v":48.77}]
["ΣΥΝΟΛΟ ΚΡΑΤΗΣΕΩΝ",{"$f":"B8+B9","v":209.94},{"$f":"C8","v":259.01}]
[]
[]
["ΠΛΗΡΩΤΕΟ ΠΟΣΟ",{"$f":"B4-B10","v":952.06}]
[]
[]
["ΚΟΣΤΟΣ (Μικτά + Εργοδοτικές Εισφορές)",{"$f":"B4+C10","v":1421.01}]
[]
[]
["Αριθμός παιδιών",0]
[]
[]
["Ασφαλιστικές Εισφορές ΕΦΚΑ","Εργαζόμενου","Εργοδότη","Σύνολο"]
["ΜΙΚΤΑ, ΙΚΑ-ΤΕΑΜ",0.13869999999999999,0.22289999999999999,{"$f":"B23+C23","v":0.36159999999999998}]
[]
["* Ανώτατο όριο ασφαλιστέων αποδοχών",7373.53]